fUST/lending_fUST_20241203
["ID","MTS","AMOUNT","RATE_DAILY","PERIOD"]
[344025082,1733217040150,-500.0,0.00029371,7]
[344025083,1733217040159,-500.0,0.00029372,7]
[344025084,1733217040168,-152.95,0.000294,31]
[344025085,1733217040177,-152.95,0.000294,31]
[344025086,1733217040186,-152.95,0.000294,31]
[344025087,1733217040195,-152.95,0.000294,31]
[344025088,1733217040205,-152.95,0.000294,31]
[344025090,1733217040215,-152.95,0.000294,31]
[344025092,1733217040225,-152.95,0.000294,31]
[344025093,1733217040235,-152.95,0.000294,31]
[344025094,1733217040245,-152.95,0.000294,31]
[344025095,1733217040258,-199.42657879,0.00029473,2]
[344025096,1733217040268,-234.11581125,0.00029473,2]
[344025097,1733217040278,-500.0,0.00029473,2]
[344025098,1733217040288,-500.0,0.00029473,2]
[344025099,1733217040298,-500.0,0.00029473,2]
[344025100,1733217040308,-500.0,0.00029473,2]
[344025101,1733217040318,-500.0,0.00029473,2]
[344025102,1733217040327,-500.0,0.00029473,2]
[344025103,1733217040337,-500.0,0.00029473,2]
[344025104,1733217040347,-417.09107246,0.00029473,2]
[344025105,1733217040357,-500.0,0.00029473,2]
[344025106,1733217040367,-500.0,0.00029473,2]
[344025107,1733217040377,-455.00558017,0.00029473,2]
[344025108,1733217040387,-500.0,0.00029473,2]
[344025109,1733217040396,-500.0,0.00029473,2]
[344025110,1733217040406,-500.0,0.00029473,2]
[344025111,1733217040416,-500.0,0.00029473,2]
[344025112,1733217040426,-500.0,0.00029473,2]
[344025113,1733217040435,-500.0,0.00029473,2]
[344025114,1733217040445,-500.0,0.00029473,2]
[344025115,1733217040455,-4220.94,0.00029474,7]
[344025116,1733217040470,-703.32,0.00029474,7]
[344025117,1733217040481,-500.0,0.00029475,7]
[344025118,1733217040491,-500.0,0.00029475,7]
[344025119,1733217040503,-500.0,0.00029475,7]
[344025120,1733217040515,-345.49578889,0.00029475,7]
[344025121,1733217040525,-640.91,0.00029475,7]
[344025122,1733217040535,-501.32,0.00029475,7]
[344025123,1733217040547,-367.00107552,0.00029528,2]
[344025124,1733217040558,-500.0,0.00029634,7]
[344025125,1733217040567,-500.0,0.00029634,7]
[344025126,1733217040577,-500.0,0.00029634,7]
[344025127,1733217040586,-500.0,0.00029634,7]
[344025128,1733217040595,-500.0,0.00029634,7]
[344025129,1733217040605,-500.0,0.00029634,7]
[344025130,1733217040615,-500.0,0.00029634,7]
[344025131,1733217040625,-510.74315508,0.00029634,7]
[344025132,1733217040635,-500.0,0.00029634,7]
[344025133,1733217040644,-500.0,0.00029634,7]
[344025134,1733217040654,-500.0,0.00029634,7]
[344025135,1733217040663,-500.0,0.00029634,7]
[344025136,1733217040673,-500.0,0.00029634,7]
[344025137,1733217040683,-500.0,0.00029634,7]
[344025138,1733217040692,-500.0,0.00029634,7]
[344025139,1733217040701,-500.0,0.00029634,7]
[344025140,1733217040711,-500.0,0.00029635,7]
[344025141,1733217040721,-570.07,0.00029635,7]
[344025142,1733217040731,-500.0,0.00029645,7]
[344025143,1733217040740,-500.0,0.00029645,7]
[344025144,1733217040749,-326.4904191,0.00029645,7]
[344025145,1733217040760,-500.0,0.00029645,7]
[344025146,1733217040769,-500.0,0.00029645,7]
[344025147,1733217040779,-500.0,0.00029645,7]
[344025148,1733217040789,-167.073968,0.00029706,2]
[344025149,1733217040799,-179.418145,0.00029706,2]
[344025150,1733217040809,-4220.94,0.00029748,7]
[344025151,1733217040819,-703.32,0.00029748,7]
[344025152,1733217040828,-287.08194011,0.00029749,7]
[344025153,1733217040838,-500.0,0.00029749,7]
[344025154,1733217040848,-500.0,0.00029749,7]
[344025155,1733217040858,-640.91,0.00029749,7]
[344025156,1733217040867,-501.32,0.00029749,7]
[344025157,1733217040876,-202.215779,0.00029875,2]
[344025158,1733217040886,-860.32,0.00029899,7]
[344025159,1733217040896,-6666.0,0.000299,2]
[344025160,1733217040906,-500.0,0.00029908,7]
[344025161,1733217040916,-500.0,0.00029908,7]
[344025162,1733217040926,-500.0,0.00029908,7]
[344025163,1733217040935,-529.99364696,0.00029908,7]
[344025164,1733217040944,-500.0,0.00029908,7]
[344025165,1733217040954,-500.0,0.00029908,7]
[344025166,1733217040964,-500.0,0.00029908,7]
[344025167,1733217040974,-500.0,0.00029908,7]
[344025168,1733217040983,-500.0,0.00029908,7]
[344025169,1733217040993,-500.0,0.00029908,7]
[344025170,1733217041004,-500.0,0.00029908,7]
[344025171,1733217041013,-500.0,0.00029908,7]
[344025172,1733217041022,-500.0,0.00029908,7]
[344025173,1733217041031,-194.34667412,0.00029908,7]
[344025174,1733217041040,-500.0,0.00029909,7]
[344025175,1733217041051,-570.07,0.00029909,7]
[344025176,1733217041060,-367.00107552,0.00029909,2]
[344025177,1733217041070,-244.78114288,0.00029919,7]
[344025178,1733217041079,-328.05068359,0.00029919,7]
[344025179,1733217041088,-500.0,0.00029919,7]
[344025180,1733217041097,-515.92411854,0.00029919,7]
[344025181,1733217041106,-500.0,0.00029919,7]
[344025182,1733217041118,-533.43,0.00029956,15]
[344025183,1733217041128,-500.0,0.00029973,5]
[344025184,1733217041137,-329.20595523,0.00029973,2]
[344025185,1733217041147,-500.0,0.00029988,7]
[344025186,1733217041156,-500.0,0.00029989,7]
[344025187,1733217041246,-500.0,0.00029989,7]
[344025188,1733217041257,-303.0,0.0003,2]
[344025189,1733217041267,-61215.59988686,0.0003,7]
[344025190,1733217041276,-159.0,0.0003,2]
[344025191,1733217041285,-318.0,0.0003,2]
[344025192,1733217041295,-4220.94,0.00030022,7]
[344025193,1733217041305,-703.32,0.00030022,7]
[344025194,1733217041315,-500.0,0.00030023,7]
[344025195,1733217041325,-500.0,0.00030023,7]
[344025196,1733217041334,-640.91,0.00030023,7]
[344025197,1733217041344,-501.32,0.00030023,7]
[344025198,1733217041354,-167.073968,0.00030064,2]
[344025199,1733217041364,-179.418145,0.00030064,2]
[344025200,1733217041374,-192.530621,0.00030137,120]
[344025201,1733217041384,-860.32,0.00030173,7]
[344025202,1733217041394,-361.86999879,0.00030181,2]
[344025203,1733217041405,-500.0,0.00030181,2]
[344025204,1733217041414,-286.70936832,0.00030181,2]
[344025205,1733217041424,-597.81955148,0.00030181,2]
[344025206,1733217041434,-277.01202112,0.00030181,2]
[344025207,1733217041444,-180.38365568,0.00030182,7]
[344025208,1733217041454,-248.62199133,0.00030182,7]
[344025209,1733217041464,-500.0,0.00030182,7]
[344025210,1733217041478,-500.0,0.00030182,7]
[344025211,1733217041487,-500.0,0.00030182,7]
[344025212,1733217041497,-500.0,0.00030182,7]
[344025213,1733217041511,-500.0,0.00030182,7]
[344025214,1733217041521,-500.0,0.00030182,7]
[344025215,1733217041531,-500.0,0.00030182,7]
[344025216,1733217041542,-500.0,0.00030182,7]
[344025217,1733217041553,-500.0,0.00030182,7]
[344025218,1733217041564,-500.0,0.00030182,7]
[344025219,1733217041574,-186.63,0.00030183,7]
[344025220,1733217041584,-570.07,0.00030183,7]
[344025221,1733217041594,-157.74031056,0.00030193,7]
[344025222,1733217041604,-500.0,0.00030193,7]
[344025223,1733217041614,-1169.27083333,0.00030194,7]
[344025224,1733217041623,-152.95,0.000302,31]
[344025225,1733217041633,-152.95,0.000302,31]
[344025226,1733217041643,-152.95,0.000302,31]
[344025227,1733217041653,-152.95,0.000302,31]
[344025228,1733217041663,-152.95,0.000302,31]
[344025229,1733217041672,-152.95,0.000302,31]
[344025230,1733217041682,-152.95,0.000302,31]
[344025231,1733217041692,-152.95,0.000302,31]
[344025232,1733217041701,-152.95,0.000302,31]
[344025233,1733217041711,-152.95,0.000302,31]
[344025234,1733217041721,-152.95,0.000302,31]
[344025235,1733217041731,-152.95,0.000302,31]
[344025236,1733217041740,-152.95,0.000302,31]
[344025237,1733217041749,-152.95,0.000302,31]
[344025238,1733217041765,-152.95,0.000302,31]
[344025239,1733217041775,-152.95,0.000302,31]
[344025240,1733217041785,-152.95,0.000302,31]
[344025241,1733217041795,-152.95,0.000302,31]
[344025242,1733217041804,-528.19860102,0.00030263,7]
[344025243,1733217041814,-367.00107552,0.0003029,2]
[344025244,1733217041824,-4220.94,0.00030296,7]
[344025245,1733217041834,-703.32,0.00030296,7]
[344025246,1733217041843,-500.0,0.00030297,7]
[344025247,1733217041852,-500.0,0.00030297,7]
[344025248,1733217041862,-640.91,0.00030297,7]
[344025249,1733217041872,-501.32,0.00030297,7]
[344025250,1733217041881,-500.0,0.00030299,7]
[344025251,1733217041891,-17574.41252179,0.000303,10]
[344025252,1733217041901,-303.0,0.00030411,2]
[344025253,1733217041910,-860.32,0.00030447,7]
[344025254,1733217041919,-500.0,0.00030456,7]
[344025255,1733217041929,-534.25751824,0.00030456,7]
[344025256,1733217041939,-500.0,0.00030456,7]
[344025257,1733217041948,-500.0,0.00030456,7]
[344025258,1733217041958,-500.0,0.00030456,7]
[344025259,1733217041967,-500.0,0.00030456,7]
[344025260,1733217041977,-500.0,0.00030456,7]
[344025261,1733217041986,-500.0,0.00030456,7]
[344025262,1733217041996,-500.0,0.00030456,7]
[344025263,1733217042007,-500.0,0.00030456,7]
[344025264,1733217042017,-500.0,0.00030456,7]
[344025265,1733217042026,-570.07,0.00030457,7]
[344025266,1733217042035,-500.0,0.00030467,7]
[344025267,1733217042045,-1169.27083333,0.00030523,7]
[344025268,1733217042054,-4220.94,0.0003057,7]
[344025269,1733217042064,-703.32,0.0003057,7]
[344025270,1733217042073,-500.0,0.00030571,7]
[344025271,1733217042083,-415.52715761,0.00030571,7]
[344025272,1733217042092,-640.91,0.00030571,7]
[344025273,1733217042102,-501.32,0.00030571,7]
[344025274,1733217042111,-201.57530026,0.00030571,2]
[344025275,1733217042120,-201.57530022,0.00030596,2]
[344025276,1733217042130,-2000.0,0.000306,3]
[344025277,1733217042139,-201.57530022,0.00030621,2]
[344025278,1733217042149,-201.57530022,0.00030646,2]
[344025279,1733217042159,-9413.34281785,0.00030671,21]
[344025280,1733217042168,-1447.24132898,0.00030671,2]
[344025281,1733217042178,-367.00107552,0.00030671,2]
[344025282,1733217042187,-201.57530022,0.00030671,2]
[344025283,1733217042197,-666.0,0.0003068,2]
[344025284,1733217042207,-587.0,0.00030681,2]
[344025285,1733217042217,-2000.0,0.000307,4]
[344025286,1733217042227,-860.32,0.00030721,7]
[344025287,1733217042237,-500.0,0.0003073,7]
[344025288,1733217042247,-500.0,0.0003073,7]
[344025289,1733217042259,-500.0,0.0003073,7]
[344025290,1733217042268,-500.0,0.0003073,7]
[344025291,1733217042278,-388.49767139,0.0003073,7]
[344025292,1733217042288,-500.0,0.0003073,7]
[344025293,1733217042298,-504.93221936,0.0003073,7]
[344025294,1733217042309,-500.0,0.0003073,7]
[344025295,1733217042318,-500.0,0.0003073,7]
[344025296,1733217042327,-570.07,0.00030731,7]
[344025297,1733217042337,-1169.27083333,0.00030758,7]
[344025298,1733217042347,-500.0,0.0003077,7]
[344025299,1733217042356,-500.0,0.0003077,7]
[344025300,1733217042366,-500.0,0.0003077,7]
[344025301,1733217042376,-540.3885002,0.0003077,7]
[344025302,1733217042385,-171.52230488,0.00030771,2]
[344025303,1733217042395,-166241.47563325,0.00030771,2]
[344025304,1733217042405,-151.0,0.00030771,7]
[344025305,1733217042416,-186.761242,0.00030771,7]
[344025306,1733217042425,-151.0,0.00030771,7]
[344025307,1733217042435,-151.0,0.00030771,7]
[344025308,1733217042444,-199.213771,0.00030771,7]
[344025309,1733217042454,-165.000298,0.00030771,7]
[344025310,1733217042466,-171.9836,0.00030771,7]
[344025311,1733217042476,-151.0,0.00030771,7]
[344025312,1733217042485,-151.0,0.00030771,7]
[344025313,1733217042494,-151.0,0.00030771,7]
[344025314,1733217042507,-173.282549,0.00030771,7]
[344025315,1733217042516,-151.0,0.00030771,7]
[344025316,1733217042526,-153.860128,0.00030771,7]
[344025317,1733217042535,-151.0,0.00030771,7]
[344025318,1733217042545,-151.0,0.00030771,7]
[344025319,1733217042556,-151.0,0.00030771,7]
[344025320,1733217042566,-151.0,0.00030771,7]
[344025321,1733217042575,-151.0,0.00030771,7]
[344025322,1733217042585,-208.229092,0.00030771,7]
[344025323,1733217042595,-681038.89247962,0.00030771,10]
[344025324,1733217042610,-178855.60491379,0.00030771,10]
[344025325,1733217042622,-321.94,0.00030771,10]
[344025326,1733217042633,-105500.0,0.00030771,10]
[344025327,1733217042685,-839.01,0.00029086,7]
[344025328,1733217042695,-369.04,0.0002935,10]
[344025329,1733217042704,-839.01,0.0002936,7]
[344025330,1733217042714,-839.01,0.00029634,7]
[344025331,1733217042724,-839.01,0.00029908,7]
[344025332,1733217042734,-839.01,0.00030182,7]
[344025333,1733217042743,-839.01,0.00030456,7]
[344025334,1733217042756,-500.0,0.00030741,7]
[344025335,1733217042765,-4943.65,0.00030771,10]
[344025336,1733217042777,-554.6901022,0.00030771,10]
[344025338,1733217042789,-1220.45936198,0.00030771,10]
[344025339,1733217042801,-366.9598944,0.00030771,10]
[344025340,1733217042813,-868.85810988,0.00030771,10]
[344025341,1733217042824,-499.99218084,0.00030771,10]
[344025342,1733217042836,-523.59809993,0.00030771,10]
[344025344,1733217042848,-409.63194552,0.00030771,10]
[344025345,1733217042860,-417.97730761,0.00030771,10]
[344025346,1733217042871,-399.67350003,0.00030771,10]
[344025347,1733217042882,-1161.67431419,0.00030771,10]
[344025348,1733217042894,-609.13850025,0.00030771,10]
[344025349,1733217042906,-713.1655415,0.00030771,10]
[344025350,1733217042917,-440.12099988,0.00030771,10]
[344025351,1733217042929,-474.99320001,0.00030771,10]
[344025352,1733217042940,-667.86,0.00030771,10]
[344025353,1733217042952,-511.212,0.00030771,10]
[344025365,1733217043528,-267.43,0.00029956,15]
[344025366,1733217043538,-839.01,0.0003073,7]
[344025367,1733217043548,-8168.26465102,0.00030771,10]
[344025368,1733217043561,-2675.48751543,0.00030771,10]
[344025369,1733217043640,-21054.75953904,0.00030771,10]
[344025370,1733217043652,-503261.14549651,0.00030771,10]
[344025394,1733217716696,166.718886,0.00013973,2]
[344025397,1733218002147,-160.56918208,0.00019602,2]
[344025422,1733218234626,-1169.27083333,0.0002,2]
[344025423,1733218234636,-2617.33400212,0.00021829,2]
[344025425,1733218234646,-300.0,0.00024999,2]
[344025427,1733218234655,-178.35072145,0.00025,2]
[344025429,1733218234667,-591.82834794,0.00025,2]
[344025430,1733218234677,-43875.06765521,0.00025,2]
[344025431,1733218234688,-183.50053776,0.00026174,2]
[344025432,1733218234698,-166.718886,0.00026274,2]
[344025433,1733218234708,-420.0,0.00027082,2]
[344025434,1733218234718,-10595.9975125,0.00027096,2]
[344025436,1733218234728,-183.50053776,0.00027674,2]
[344025438,1733218234738,-2813.96,0.00028103,7]
[344025441,1733218234748,-500.0,0.00028103,7]
[344025444,1733218234757,-248.62199133,0.00028103,7]
[344025446,1733218234767,-180.38365568,0.00028103,7]
[344025448,1733218234776,-500.0,0.00028104,7]
[344025450,1733218234789,-500.0,0.00028104,7]
[344025452,1733218234799,-157.74031056,0.00028104,7]
[344025454,1733218234808,-500.0,0.00028104,7]
[344025457,1733218234819,-500.0,0.00028104,7]
[344025459,1733218234828,-1169.27083333,0.00028105,7]
[344025461,1733218234838,-2813.96,0.00028377,7]
[344025463,1733218234848,-500.0,0.00028377,7]
[344025464,1733218234859,-1169.27083333,0.00028378,7]
[344025465,1733218234870,-500.0,0.00028378,7]
[344025467,1733218234880,-500.0,0.00028378,7]
[344025469,1733218234889,-500.0,0.00028378,7]
[344025470,1733218234899,-500.0,0.00028378,7]
[344025471,1733218234909,-179.418146,0.00028633,2]
[344025472,1733218234919,-2813.96,0.00028651,7]
[344025473,1733218234928,-500.0,0.00028651,7]
[344025474,1733218234939,-1169.27083333,0.00028652,7]
[344025475,1733218234949,-500.0,0.00028652,7]
[344025476,1733218234958,-500.0,0.00028652,7]
[344025477,1733218234967,-500.0,0.00028652,7]
[344025478,1733218234977,-500.0,0.00028652,7]
[344025479,1733218234987,-2813.96,0.00028925,7]
[344025480,1733218234996,-500.0,0.00028925,7]
[344025481,1733218235006,-500.0,0.00028926,7]
[344025482,1733218235015,-202.0547048,0.00028926,7]
[344025483,1733218235025,-415.52715761,0.00028926,7]
[344025484,1733218235040,-242.50556237,0.00028926,7]
[344025485,1733218235052,-307.53,0.0002899,10]
[344025486,1733218235062,-23657.64634683,0.00029,7]
[344025487,1733218235071,-528.19860102,0.00029086,7]
[344025488,1733218235080,-500.0,0.00029086,7]
[344025489,1733218235089,-500.0,0.00029086,7]
[344025490,1733218235098,-1017.84,0.000291,2]
[344025491,1733218235107,-183.50053776,0.00029173,2]
[344025492,1733218235117,-2813.96,0.00029199,7]
[344025493,1733218235126,-500.0,0.00029199,7]
[344025494,1733218235135,-788.62,0.00029199,7]
[344025495,1733218235145,-500.0,0.000292,7]
[344025496,1733218235153,-587.0,0.00029339,2]
[344025497,1733218235163,-500.0,0.0002936,7]
[344025498,1733218235172,-500.0,0.0002936,7]
[344025499,1733218235181,-500.0,0.00029399,2]
[344025500,1733218235191,-500.0,0.00029399,2]
[344025501,1733218235207,-157.45456361,0.00029399,2]
[344025502,1733218235216,-272.7783978,0.00029399,2]
[344025503,1733218235226,-500.0,0.00029399,2]
[344025504,1733218235235,-548.7836493,0.00029399,2]
[344025505,1733218235245,-152.81,0.000294,31]
[344025506,1733218235254,-152.81,0.000294,31]
[344025507,1733218235263,-152.81,0.000294,31]
[344025508,1733218235272,-152.81,0.000294,31]
[344025509,1733218235284,-152.81,0.000294,31]
[344025510,1733218235294,-152.81,0.000294,31]
[344025511,1733218235303,-152.81,0.000294,31]
[344025512,1733218235313,-537.21675938,0.00029473,7]
[344025513,1733218235325,-500.0,0.00029473,7]
[344025514,1733218235337,-2813.96,0.00029473,7]
[344025515,1733218235346,-500.0,0.00029473,7]
[344025516,1733218235355,-534.25751824,0.00029473,7]
[344025517,1733218235365,-788.62,0.00029473,7]
[344025518,1733218235375,-500.0,0.00029473,7]
[344025519,1733218235384,-500.0,0.00029473,7]
[344025520,1733218235394,-500.0,0.00029473,7]
[344025521,1733218235404,-500.0,0.00029473,7]
[344025522,1733218235414,-500.0,0.00029473,7]
[344025523,1733218235423,-500.0,0.00029473,7]
[344025524,1733218235433,-500.0,0.00029473,7]
[344025525,1733218235442,-500.0,0.00029473,7]
[344025526,1733218235452,-500.0,0.00029473,7]
[344025527,1733218235461,-500.0,0.00029473,7]
[344025528,1733218235470,-594.3,0.00029473,7]
[344025529,1733218235479,-500.0,0.00029474,7]
[344025530,1733218235489,-657.15549777,0.00029538,2]
[344025531,1733218235498,-500.0,0.00029634,7]
[344025532,1733218235507,-500.0,0.00029634,7]
[344025533,1733218235517,-500.0,0.00029747,7]
[344025534,1733218235526,-2813.96,0.00029747,7]
[344025535,1733218235539,-500.0,0.00029747,7]
[344025536,1733218235548,-233.43552903,0.00029747,7]
[344025537,1733218235561,-555.18447097,0.00029747,7]
[344025538,1733218235571,-500.0,0.00029747,7]
[344025539,1733218235580,-500.0,0.00029747,7]
[344025540,1733218235590,-500.0,0.00029747,7]
[344025541,1733218235599,-500.0,0.00029747,7]
[344025542,1733218235610,-500.0,0.00029747,7]
[344025543,1733218235620,-500.0,0.00029747,7]
[344025544,1733218235630,-500.0,0.00029747,7]
[344025545,1733218235640,-500.0,0.00029747,7]
[344025546,1733218235650,-500.0,0.00029747,7]
[344025547,1733218235659,-594.3,0.00029747,7]
[344025548,1733218235669,-500.0,0.00029748,7]
[344025549,1733218235679,-500.0,0.00029908,7]
[344025550,1733218235688,-500.0,0.00029908,7]
[344025551,1733218235698,-1287.90831278,0.0003,10]
[344025563,1733218238554,-256.28,0.0002899,10]
[344025564,1733218238564,-3712.09168722,0.0003,10]
[344025565,1733218238574,-227.0,0.0003,2]
[344025566,1733218238583,-212.0,0.0003,2]
[344025567,1733218238593,-800.9177077,0.0003,2]
[344025568,1733218238602,-1500.0,0.0003,2]
[344025569,1733218238612,-1024.69101681,0.0003,7]
[344025570,1733218238623,-167.94226634,0.0003,2]
[344025571,1733218238632,-412.79238942,0.0003,10]
[344025573,1733218238642,-8003.51391796,0.0003,3]
[344025574,1733218238651,-159.0,0.0003,2]
[344025576,1733218238661,-500.0,0.00030021,7]
[344025578,1733218238670,-2813.96,0.00030021,7]
[344025580,1733218238679,-500.0,0.00030021,7]
[344025582,1733218238689,-788.62,0.00030021,7]
[344025584,1733218238698,-500.0,0.00030021,7]
[344025586,1733218238707,-500.0,0.00030021,7]
[344025589,1733218238716,-500.0,0.00030021,7]
[344025591,1733218238725,-500.0,0.00030021,7]
[344025594,1733218238735,-500.0,0.00030021,7]
[344025597,1733218238744,-504.93221936,0.00030021,7]
[344025600,1733218238753,-500.0,0.00030021,7]
[344025603,1733218238763,-388.49767139,0.00030021,7]
[344025605,1733218238771,-500.0,0.00030021,7]
[344025607,1733218238781,-594.3,0.00030021,7]
[344025609,1733218238791,-500.0,0.00030022,7]
[344025611,1733218238800,-192.5306214,0.00030137,120]
[344025613,1733218238809,-334.0,0.00030173,30]
[344025615,1733218238819,-500.0,0.00030182,7]
[344025617,1733218238829,-500.0,0.00030182,7]
[344025619,1733218238838,-513.68399063,0.00030195,5]
[344025621,1733218238847,-500.0,0.00030295,7]
[344025622,1733218238857,-2813.96,0.00030295,7]
[344025624,1733218238871,-500.0,0.00030295,7]
[344025626,1733218238880,-788.62,0.00030295,7]
[344025628,1733218238889,-500.0,0.00030295,7]
[344025630,1733218238899,-500.0,0.00030295,7]
[344025632,1733218238907,-221.90285698,0.00030295,7]
[344025634,1733218238917,-500.0,0.00030295,7]
[344025636,1733218238926,-500.0,0.00030295,7]
[344025638,1733218238935,-500.0,0.00030295,7]
[344025640,1733218238946,-500.0,0.00030295,7]
[344025642,1733218238956,-594.3,0.00030295,7]
[344025644,1733218238965,-500.0,0.00030296,7]
[344025646,1733218238975,-152.81,0.000303,31]
[344025648,1733218238984,-152.81,0.000303,31]
[344025650,1733218238994,-152.81,0.000303,31]
[344025652,1733218239003,-152.81,0.000303,31]
[344025654,1733218239012,-152.81,0.000303,31]
[344025656,1733218239021,-152.81,0.000303,31]
[344025657,1733218239031,-152.81,0.000303,31]
[344025659,1733218239041,-152.81,0.000303,31]
[344025661,1733218239051,-152.81,0.000303,31]
[344025663,1733218239060,-152.81,0.000303,31]
[344025665,1733218239069,-152.81,0.000303,31]
[344025667,1733218239078,-152.81,0.000303,31]
[344025669,1733218239087,-152.81,0.000303,31]
[344025671,1733218239100,-152.81,0.000303,31]
[344025673,1733218239109,-17574.41252179,0.000303,10]
[344025675,1733218239119,-227.0,0.00030411,2]
[344025677,1733218239128,-1221.0809417,0.00030425,2]
[344025679,1733218239137,-500.0,0.00030456,7]
[344025681,1733218239146,-500.0,0.00030456,7]
[344025683,1733218239155,-500.0,0.00030569,7]
[344025685,1733218239165,-2813.96,0.00030569,7]
[344025687,1733218239174,-500.0,0.00030569,7]
[344025688,1733218239183,-788.62,0.00030569,7]
[344025690,1733218239192,-500.0,0.00030569,7]
[344025692,1733218239201,-500.0,0.00030569,7]
[344025694,1733218239211,-500.0,0.00030569,7]
[344025696,1733218239220,-500.0,0.00030569,7]
[344025698,1733218239230,-500.0,0.00030569,7]
[344025700,1733218239239,-500.0,0.00030569,7]
[344025702,1733218239248,-594.3,0.00030569,7]
[344025704,1733218239258,-500.0,0.0003057,7]
[344025706,1733218239267,-151.0,0.000306,2]
[344025708,1733218239276,-500.0,0.00030669,7]
[344025710,1733218239287,-666.0,0.00030671,2]
[344025712,1733218239296,-6666.0,0.00030671,2]
[344025714,1733218239306,-9413.34281785,0.00030671,21]
[344025716,1733218239316,-1007.87650114,0.00030673,2]
[344025718,1733218239325,-1447.24132898,0.00030673,2]
[344025720,1733218239335,-183.50053776,0.00030673,2]
[344025721,1733218239344,-2000.0,0.000307,4]
[344025723,1733218239354,-2000.0,0.000307,4]
[344025724,1733218239363,-257.23782228,0.000307,2]
[344025725,1733218239374,-500.0,0.0003073,7]
[344025726,1733218239383,-500.0,0.0003073,7]
[344025727,1733218239393,-151.0,0.00030771,7]
[344025728,1733218239403,-151.0,0.00030771,7]
[344025729,1733218239412,-151.0,0.00030771,7]
[344025730,1733218239421,-151.0,0.00030771,7]
[344025731,1733218239431,-151.0,0.00030771,7]
[344025732,1733218239440,-151.0,0.00030771,7]
[344025733,1733218239450,-500.0,0.00030772,7]
[344025734,1733218239459,-500.0,0.00030772,7]
[344025735,1733218239469,-500.0,0.00030772,7]
[344025736,1733218239478,-540.3885002,0.00030772,7]
[344025737,1733218239487,-500.0,0.00030772,2]
[344025738,1733218239497,-200.69655782,0.00030772,2]
[344025739,1733218239507,-253.30899915,0.00030772,2]
[344025740,1733218239516,-193.90841479,0.00030772,2]
[344025741,1733218239527,-268.47368604,0.00030772,2]
[344025742,1733218239539,-329.34586544,0.00030772,2]
[344025743,1733218239550,-157.060061,0.00030773,5]
[344025744,1733218239559,-151.0,0.00030773,7]
[344025745,1733218239569,-151.0,0.00030773,7]
[344025746,1733218239578,-151.0,0.00030773,7]
[344025747,1733218239587,-151.0,0.00030773,7]
[344025748,1733218239597,-151.0,0.00030773,7]
[344025749,1733218239606,-173.282549,0.00030773,7]
[344025750,1733218239616,-151.0,0.00030773,7]
[344025751,1733218239628,-186.761242,0.00030773,7]
[344025752,1733218239637,-171.9836,0.00030773,7]
[344025753,1733218239647,-151.0,0.00030773,7]